[Event "Early-Titled-Tuesday-Blitz-April-16-2024"]
[Site "Chess.com"]
[Date "2024.04.16"]
[Round "11"]
[White "Grossboss19"]
[Black "bubeliang"]
[Result "1/2-1/2"]
[WhiteElo "2616"]
[BlackElo "2757"]
[TimeControl "180+1"]
[EndTime "10:15:31 PDT"]
[Termination "Game drawn by 50-move rule"]

1. d4 {[%clk 0:02:59.4]} 1... d5 {[%clk 0:02:53.4]} 2. c4 {[%clk 0:02:59.2]}
2... e6 {[%clk 0:02:52.7]} 3. Nc3 {[%clk 0:02:59.1]} 3... Nf6 {[%clk 0:02:51]}
4. Bg5 {[%clk 0:02:58.3]} 4... dxc4 {[%clk 0:02:47.7]} 5. e3 {[%clk 0:02:55]}
5... Be7 {[%clk 0:02:47.2]} 6. Bxc4 {[%clk 0:02:53.7]} 6... a6 {[%clk
0:02:46.9]} 7. a4 {[%clk 0:02:49]} 7... b6 {[%clk 0:02:46.6]} 8. Nf3 {[%clk
0:02:48.2]} 8... Bb7 {[%clk 0:02:46.8]} 9. O-O {[%clk 0:02:48.6]} 9... O-O
{[%clk 0:02:46.9]} 10. Qe2 {[%clk 0:02:48.8]} 10... Ne4 {[%clk 0:02:44.8]} 11.
Bxe7 {[%clk 0:02:46.3]} 11... Qxe7 {[%clk 0:02:44.5]} 12. Nxe4 {[%clk
0:02:44.4]} 12... Bxe4 {[%clk 0:02:45.4]} 13. Rac1 {[%clk 0:02:44.1]} 13... Nd7
{[%clk 0:02:44.4]} 14. Nd2 {[%clk 0:02:42.1]} 14... Bb7 {[%clk 0:02:44]} 15. Nb3
{[%clk 0:02:28.1]} 15... Rfc8 {[%clk 0:02:37.5]} 16. Rfd1 {[%clk 0:02:18.5]}
16... c5 {[%clk 0:02:36.4]} 17. d5 {[%clk 0:02:14.4]} 17... exd5 {[%clk
0:02:36.3]} 18. Bxd5 {[%clk 0:02:13.5]} 18... Bxd5 {[%clk 0:02:37.2]} 19. Rxd5
{[%clk 0:02:13.8]} 19... Nf6 {[%clk 0:02:37.4]} 20. Rdd1 {[%clk 0:02:12.7]}
20... h6 {[%clk 0:02:34.5]} 21. h3 {[%clk 0:02:10.2]} 21... Qe6 {[%clk
0:02:34.2]} 22. Nd2 {[%clk 0:02:07.7]} 22... Rab8 {[%clk 0:02:32.8]} 23. Qxa6
{[%clk 0:02:03.7]} 23... Nd5 {[%clk 0:02:28.2]} 24. Qc4 {[%clk 0:01:57.7]} 24...
Nc7 {[%clk 0:02:22.6]} 25. Qxe6 {[%clk 0:01:54.9]} 25... Nxe6 {[%clk 0:02:23.5]}
26. Nc4 {[%clk 0:01:55.2]} 26... Rc7 {[%clk 0:02:21.8]} 27. Na3 {[%clk
0:01:51.3]} 27... Re7 {[%clk 0:02:17.4]} 28. Rd6 {[%clk 0:01:47.7]} 28... g6
{[%clk 0:02:12.3]} 29. Rcd1 {[%clk 0:01:43.9]} 29... Rbb7 {[%clk 0:02:11.8]} 30.
Nb5 {[%clk 0:01:39]} 30... Kg7 {[%clk 0:02:11.5]} 31. Rc6 {[%clk 0:01:38.5]}
31... Nc7 {[%clk 0:02:01.5]} 32. Rdd6 {[%clk 0:01:22.3]} 32... Nxb5 {[%clk
0:01:56.8]} 33. axb5 {[%clk 0:01:22.4]} 33... Ra7 {[%clk 0:01:57.2]} 34. Rxb6
{[%clk 0:01:22.1]} 34... Ra1+ {[%clk 0:01:57.1]} 35. Kh2 {[%clk 0:01:22.3]}
35... Ra2 {[%clk 0:01:57.6]} 36. Rd2 {[%clk 0:01:20.8]} 36... Ra5 {[%clk
0:01:38]} 37. Rc2 {[%clk 0:01:18.7]} 37... Re4 {[%clk 0:01:37.1]} 38. Rxc5
{[%clk 0:01:11.6]} 38... Rb4 {[%clk 0:01:37.5]} 39. Rc2 {[%clk 0:01:07.6]} 39...
Ra1 {[%clk 0:01:30.5]} 40. Rb7 {[%clk 0:01:02.2]} 40... Ra8 {[%clk 0:01:22.8]}
41. b6 {[%clk 0:00:55.6]} 41... Ra5 {[%clk 0:01:21.5]} 42. g4 {[%clk 0:00:46.5]}
42... h5 {[%clk 0:01:17.5]} 43. Kg3 {[%clk 0:00:42.9]} 43... hxg4 {[%clk
0:01:05]} 44. hxg4 {[%clk 0:00:43.8]} 44... Ra8 {[%clk 0:01:05.3]} 45. f3 {[%clk
0:00:40]} 45... Rb3 {[%clk 0:01:04.7]} 46. e4 {[%clk 0:00:39.3]} 46... g5 {[%clk
0:01:03]} 47. Rc5 {[%clk 0:00:33.6]} 47... Kg6 {[%clk 0:01:00.9]} 48. Rc6+
{[%clk 0:00:30.7]} 48... Kg7 {[%clk 0:00:57.6]} 49. Rd7 {[%clk 0:00:29.6]} 49...
Rxb2 {[%clk 0:00:55]} 50. Rcc7 {[%clk 0:00:22.7]} 50... Raa2 {[%clk 0:00:48]}
51. Rxf7+ {[%clk 0:00:20]} 51... Kg6 {[%clk 0:00:48.4]} 52. Rg7+ {[%clk
0:00:20.2]} 52... Kh6 {[%clk 0:00:45.4]} 53. Rh7+ {[%clk 0:00:20.5]} 53... Kg6
{[%clk 0:00:45.9]} 54. Rcg7+ {[%clk 0:00:21.2]} 54... Kf6 {[%clk 0:00:46.5]} 55.
e5+ {[%clk 0:00:21.8]} 55... Ke6 {[%clk 0:00:27.3]} 56. Rh6+ {[%clk 0:00:21]}
56... Kd5 {[%clk 0:00:27.4]} 57. Rxg5 {[%clk 0:00:20.7]} 57... Rg2+ {[%clk
0:00:26.6]} 58. Kf4 {[%clk 0:00:20.9]} 58... Ra4+ {[%clk 0:00:27.5]} 59. Kf5
{[%clk 0:00:21]} 59... Rf2 {[%clk 0:00:28]} 60. Rh3 {[%clk 0:00:19.1]} 60... Rb2
{[%clk 0:00:26.1]} 61. Rg6 {[%clk 0:00:19]} 61... Rbb4 {[%clk 0:00:22.9]} 62.
Rd6+ {[%clk 0:00:19.1]} 62... Kc5 {[%clk 0:00:23.6]} 63. Ke6 {[%clk 0:00:17.1]}
63... Rf4 {[%clk 0:00:23.5]} 64. g5 {[%clk 0:00:16.7]} 64... Ra8 {[%clk
0:00:23.3]} 65. b7 {[%clk 0:00:15.6]} 65... Re8+ {[%clk 0:00:23.4]} 66. Kd7
{[%clk 0:00:15.7]} 66... Rg8 {[%clk 0:00:23.7]} 67. Re6 {[%clk 0:00:14.3]} 67...
Rb4 {[%clk 0:00:22.7]} 68. Rc6+ {[%clk 0:00:09.5]} 68... Kd5 {[%clk 0:00:23.1]}
69. Rd6+ {[%clk 0:00:09.4]} 69... Kxe5 {[%clk 0:00:23.5]} 70. f4+ {[%clk
0:00:08.9]} 70... Kf5 {[%clk 0:00:17.1]} 71. Kc6 {[%clk 0:00:07.2]} 71... Rb1
{[%clk 0:00:09.6]} 72. Rd5+ {[%clk 0:00:07]} 72... Kxf4 {[%clk 0:00:08.6]} 73.
Rb5 {[%clk 0:00:06.2]} 73... Rc1+ {[%clk 0:00:06.9]} 74. Rc5 {[%clk 0:00:06.4]}
74... Rb1 {[%clk 0:00:05.3]} 75. Rh4+ {[%clk 0:00:06.8]} 75... Kg3 {[%clk
0:00:04.7]} 76. Rhc4 {[%clk 0:00:07.1]} 76... Rg6+ {[%clk 0:00:04.9]} 77. Kc7
{[%clk 0:00:05.1]} 77... Rg7+ {[%clk 0:00:05.3]} 78. Kd6 {[%clk 0:00:05.5]}
78... Rgxb7 {[%clk 0:00:05.7]} 79. Ke6 {[%clk 0:00:04.2]} 79... R1b6+ {[%clk
0:00:05]} 80. Kf5 {[%clk 0:00:04.3]} 80... Rf7+ {[%clk 0:00:05.7]} 81. Ke5
{[%clk 0:00:04.7]} 81... Re7+ {[%clk 0:00:05.9]} 82. Kd4 {[%clk 0:00:05.2]}
82... Rg7 {[%clk 0:00:05.4]} 83. Re5 {[%clk 0:00:04.9]} 83... Kg4 {[%clk
0:00:05.3]} 84. Kd5+ {[%clk 0:00:05.2]} 84... Kh5 {[%clk 0:00:03.9]} 85. g6+
{[%clk 0:00:03]} 85... Kxg6 {[%clk 0:00:04]} 86. Rg4+ {[%clk 0:00:03.6]} 86...
Kf7 {[%clk 0:00:04.1]} 87. Re7+ {[%clk 0:00:03.7]} 87... Kxe7 {[%clk 0:00:04.3]}
88. Rxg7+ {[%clk 0:00:04.6]} 88... Kf6 {[%clk 0:00:04.8]} 89. Rc7 {[%clk
0:00:05.1]} 89... Rb5+ {[%clk 0:00:05.2]} 90. Rc5 {[%clk 0:00:04.8]} 90... Rb1
{[%clk 0:00:05.4]} 91. Rc6+ {[%clk 0:00:04.8]} 91... Ke7 {[%clk 0:00:05.7]} 92.
Rc8 {[%clk 0:00:05.7]} 92... Rd1+ {[%clk 0:00:05.4]} 93. Ke4 {[%clk 0:00:06]}
93... Ra1 {[%clk 0:00:06]} 94. Kf3 {[%clk 0:00:06.3]} 94... Kd7 {[%clk
0:00:06.3]} 95. Rh8 {[%clk 0:00:07]} 95... Ke6 {[%clk 0:00:06.8]} 96. Rh2 {[%clk
0:00:07.5]} 96... Kf5 {[%clk 0:00:06.9]} 97. Rh5+ {[%clk 0:00:08.1]} 97... Kg6
{[%clk 0:00:07.3]} 98. Rc5 {[%clk 0:00:09]} 98... Ra3+ {[%clk 0:00:07.6]} 99.
Ke4 {[%clk 0:00:09.6]} 99... Kf6 {[%clk 0:00:08.2]} 100. Kd4 {[%clk 0:00:10.3]}
100... Ra4+ {[%clk 0:00:08.2]} 101. Kc3 {[%clk 0:00:10.2]} 101... Ra1 {[%clk
0:00:08.7]} 102. Kb3 {[%clk 0:00:10.7]} 102... Ke6 {[%clk 0:00:09.1]} 103. Rh5
{[%clk 0:00:11.2]} 103... Rb1+ {[%clk 0:00:09.2]} 104. Kc2 {[%clk 0:00:11.1]}
104... Rg1 {[%clk 0:00:10.1]} 105. Kd3 {[%clk 0:00:11.7]} 105... Kf6 {[%clk
0:00:10.3]} 106. Rb5 {[%clk 0:00:12.3]} 106... Kg6 {[%clk 0:00:10.2]} 107. Kc4
{[%clk 0:00:13.2]} 107... Rg4+ {[%clk 0:00:10]} 108. Kd3 {[%clk 0:00:13.1]}
108... Kf6 {[%clk 0:00:10.7]} 109. Kc3 {[%clk 0:00:13]} 109... Ke6 {[%clk
0:00:11.1]} 110. Ra5 {[%clk 0:00:13.6]} 110... Rg3+ {[%clk 0:00:11.1]} 111. Kb4
{[%clk 0:00:13.4]} 111... Kd7 {[%clk 0:00:11.4]} 112. Kc4 {[%clk 0:00:13.6]}
112... Kc8 {[%clk 0:00:11.7]} 113. Rh5 {[%clk 0:00:14.2]} 113... Kb7 {[%clk
0:00:12]} 114. Kd5 {[%clk 0:00:14.8]} 114... Ra3 {[%clk 0:00:11.4]} 115. Kc4
{[%clk 0:00:15.3]} 115... Ka8 {[%clk 0:00:10.1]} 116. Kb4 {[%clk 0:00:15.9]}
116... Rf3 {[%clk 0:00:10.3]} 117. Rh8+ {[%clk 0:00:16.5]} 117... Kb7 {[%clk
0:00:10.7]} 118. Kc5 {[%clk 0:00:17.2]} 118... Rf5+ {[%clk 0:00:10.4]} 119. Kd6
{[%clk 0:00:17.7]} 119... Rf1 {[%clk 0:00:11.3]} 120. Rh7+ {[%clk 0:00:17.9]}
120... Kb6 {[%clk 0:00:11.8]} 121. Rh5 {[%clk 0:00:18.1]} 121... Rd1+ {[%clk
0:00:11.9]} 122. Rd5 {[%clk 0:00:18.2]} 122... Rh1 {[%clk 0:00:12.2]} 123. Rd2
{[%clk 0:00:18.3]} 123... Rh8 {[%clk 0:00:11.5]} 124. Rb2+ {[%clk 0:00:17.4]}
124... Ka5 {[%clk 0:00:12]} 125. Kc5 {[%clk 0:00:17.1]} 125... Ka4 {[%clk
0:00:12.4]} 126. Rb7 {[%clk 0:00:16.6]} 126... Rc8+ {[%clk 0:00:11.4]} 127. Kb6
{[%clk 0:00:16.7]} 127... Kb4 {[%clk 0:00:10.6]} 128. Rh7 {[%clk 0:00:16.8]}
128... Kc4 {[%clk 0:00:10.6]} 129. Rh1 {[%clk 0:00:16.4]} 129... Kd5 {[%clk
0:00:10.2]} 130. Rd1+ {[%clk 0:00:16.2]} 130... Ke4 {[%clk 0:00:10.4]} 131. Re1+
{[%clk 0:00:16.8]} 131... Kd3 {[%clk 0:00:09.9]} 132. Rd1+ {[%clk 0:00:17.3]}
132... Ke2 {[%clk 0:00:10.2]} 133. Rd7 {[%clk 0:00:17.9]} 133... Rb8+ {[%clk
0:00:10.6]} 134. Kc6 {[%clk 0:00:18.3]} 134... Rh8 {[%clk 0:00:11.1]} 135. Kd6
{[%clk 0:00:19.2]} 135... Ke3 {[%clk 0:00:11.3]} 136. Re7+ {[%clk 0:00:19.5]}
136... Kd4 {[%clk 0:00:11.6]} 137. Rg7 {[%clk 0:00:20.2]} 137... Rh6+ {[%clk
0:00:11.3]} 138. Kc7 {[%clk 0:00:19.6]} 1/2-1/2